Body Name,Body Unit,Service Label,Service Code,Organisation Unit,Expenditure Category ,Calc Payment Date,Transaction Number,Net Payment ,Supplier Name,Supplier ID
North West Leicestershire District Council ,31UH,Finance,EXCH,Exchequer Services,Recruitment - Agency Broker,30/11/2011,1225776,"6,836.46",Comensura Limited,A036958
North West Leicestershire District Council ,31UH,Leisure Centres,HPLC,Hood Park Leisure Centre,Water - Sewerage services,30/11/2011,1225834,800.00,Severn Trent Water Limited,A001468
North West Leicestershire District Council ,31UH,Leisure Centres,HPLC,Hood Park Leisure Centre,Water - Sewerage services,30/11/2011,1225835,"3,264.60",Severn Trent Water Limited,A001468
North West Leicestershire District Council ,31UH,Housing Repairs,HRAHRM,HRA Housing Repairs & Maintenance,Waste - Tipping building,30/11/2011,1225838,632.00,Ward Recycling,A035471
North West Leicestershire District Council ,31UH,Street Management,ENOWM,Environment Waste Management,Precept/Concessionary Fares Scheme,30/11/2011,1225845,"36,246.09",Leicestershire County Council,A000950
North West Leicestershire District Council ,31UH,Leisure & Culture,CULTYP,Cultural Services Children & YoungPeople,Charity Services - Voluntary services,30/11/2011,1225848,"7,652.55",MRC Community Action,A001208
North West Leicestershire District Council ,31UH,Leisure & Culture,CULTYP,Cultural Services Children & YoungPeople,Charity Services - Voluntary services,30/11/2011,1225849,"7,347.60",MRC Community Action,A001208
North West Leicestershire District Council ,31UH,Leisure & Culture,CULTYP,Cultural Services Children & YoungPeople,Charity Services - Voluntary services,30/11/2011,1225850,"10,203.40",MRC Community Action,A001208
North West Leicestershire District Council ,31UH,Housing Repairs,HRAHRM,HRA Housing Repairs & Maintenance,Central Billing Services,28/11/2011,1225893,"45,557.31",Collective Enterprises Ltd,A036453
North West Leicestershire District Council ,31UH,Housing,HRAHM,HRA Housing Management,Catalogue stocks,28/11/2011,1225895,501.84,ESPO,A000958
North West Leicestershire District Council ,31UH,Finance,EXCH,Exchequer Services,NNDR Contribution,28/11/2011,1225903,"1,893,812.00",Department for Communities & Local Government,A028518
North West Leicestershire District Council ,31UH,Finance,EXCH,Exchequer Services,Telecoms - Mobile,28/11/2011,1225905,"6,315.15",Vodafone Limited,A001861
North West Leicestershire District Council ,31UH,Property Services,PROPFM,Property Facilities Management,Water - Sewerage services,30/11/2011,1225925,"1,582.56",Severn Trent Water Limited,A001468
North West Leicestershire District Council ,31UH,Environmental Health,EES,Environmental Services,Grant payment,30/11/2011,1226007,"10,011.00",J Rennocks & Son Ltd,A027781
North West Leicestershire District Council ,31UH,Legal & Democratic,LDLS,Legal Services,Legal services,30/11/2011,1226009,"3,375.00",Browne Jacobson LLP,A000251
North West Leicestershire District Council ,31UH,Information Technology,ICT,ICT Services,Photocopiers and consumables,30/11/2011,1226032,938.71,Danwood Contract Rentals,A033719
North West Leicestershire District Council ,31UH,Planning & Development,EDC,Environment - Development Control,Planning - Advice,30/11/2011,1226108,625.00,Sanham Agricultural Planning Ltd,A035463
North West Leicestershire District Council ,31UH,Housing Repairs,HRAHRM,HRA Housing Repairs & Maintenance,Building Services,30/11/2011,1226181,"2,426.20",J Tomlinson Ltd,A033342
North West Leicestershire District Council ,31UH,Housing Repairs,HRAHRM,HRA Housing Repairs & Maintenance,Fuel servicing (Hsg Maintenance),30/11/2011,1226182,"2,468.56",Elite Sweep Service,A035675
North West Leicestershire District Council ,31UH,Environmental Health,EEHL,Environmental Health & Licensing,Animals - Boarding Kennels,07/12/2011,1226210,951.39,College Garth Boarding Kennels,A000385
North West Leicestershire District Council ,31UH,Finance,EXCH,Exchequer Services,Recruitment - Agency Broker,07/12/2011,1226214,"5,129.78",Comensura Limited,A036958
North West Leicestershire District Council ,31UH,Leisure Centres,HPLC,Hood Park Leisure Centre,Water - Sewerage services,07/12/2011,1226288,800.00,Severn Trent Water Limited,A001468
North West Leicestershire District Council ,31UH,Leisure & Culture,CULTYP,Cultural Services Children & YoungPeople,Charity Services - Voluntary services,07/12/2011,1226289,"5,510.70",MRC Community Action,A001208
North West Leicestershire District Council ,31UH,Street Management,ENOT,Environment Transport,Water - Sewerage services,07/12/2011,1226309,"1,702.57",Severn Trent Water Limited,A001468
North West Leicestershire District Council ,31UH,Housing,HRAOPS,HRA Older Persons Service,Uniforms,07/12/2011,1219664,651.20,Meltemi Company Clothing Ltd,A015257
North West Leicestershire District Council ,31UH,Environmental Health,EES,Environmental Services,Grant payment,07/12/2011,1226348,900.00,David Kirton Designs,A038386
North West Leicestershire District Council ,31UH,Legal & Democratic,LDLS,Legal Services,Legal services,07/12/2011,1226442,500.00,Browne Jacobson LLP,A000251
North West Leicestershire District Council ,31UH,Housing Repairs,HRAHRM,HRA Housing Repairs & Maintenance,Building - General Maintenance works - Minor framework,07/12/2011,1226450,533.00,Herbert Baggaley Construction Limited,A036241
North West Leicestershire District Council ,31UH,Environmental Health,EES,Environmental Services,Building Services - Disabled grants,07/12/2011,1226491,"4,006.00",Keith Armston Building Contractor,A031176
North West Leicestershire District Council ,31UH,Leisure & Culture,CULTYP,Cultural Services Children & YoungPeople,Conference & training services,07/12/2011,1226497,"2,250.00",Veronica House Project Let's Break The Cycle,A038729
North West Leicestershire District Council ,31UH,Corporate Director,HR,Human Resources,Criminal Records Checks,07/12/2011,1226515,924.00,Criminal Records Bureau,A027625
North West Leicestershire District Council ,31UH,Finance,EXCH,Exchequer Services,Policing,07/12/2011,1226517,"5,387,836.00",Leicestershire Police Authority,A007096
North West Leicestershire District Council ,31UH,Finance,EXCH,Exchequer Services,precept ,07/12/2011,1226518,"169,529.00","Leicester, Leicestershire &",A028339
North West Leicestershire District Council ,31UH,Finance,EXCH,Exchequer Services,Precept/Concessionary Fares Scheme,07/12/2011,1226519,"3,376,245.00",Leicestershire County Council,A000950
North West Leicestershire District Council ,31UH,Finance,EXCH,Exchequer Services,IT - Telephone and computing,07/12/2011,1226521,"3,571.45",British Telecommunications Plc,A000233
North West Leicestershire District Council ,31UH,Finance,EXCH,Exchequer Services,NNDR Contribution,07/12/2011,1226528,"1,893,814.00",Department for Communities & Local Government,A028518
North West Leicestershire District Council ,31UH,Finance,EXCH,Exchequer Services,Policing,07/12/2011,1226579,"538,783.60",Leicestershire Police Authority,A007096
North West Leicestershire District Council ,31UH,Leisure & Culture,CULTHC,Cultural Services Heritage,Consultancy- Analysis of Tourism Statistics,07/12/2011,1226512,"1,500.00",Global Tourism Solutions (UK) Limited,A038189
North West Leicestershire District Council ,31UH,Leisure Centres,HLC,Hermitage Leisure Centre,Water - Sewerage services,14/12/2011,1226695,650.00,Severn Trent Water Limited,A001468
North West Leicestershire District Council ,31UH,Finance,EXCH,Exchequer Services,Recruitment - Agency Broker,14/12/2011,1226700,"8,296.42",Comensura Limited,A036958
North West Leicestershire District Council ,31UH,Street Management,ESS,Environment - Street Scene,Water - Sewerage services,14/12/2011,1226707,"1,470.18",Severn Trent Water Limited,A001468
North West Leicestershire District Council ,31UH,Information Technology,ICT,ICT Services,IT - Telephone and computing,14/12/2011,1226711,"4,387.76",Virgin Media Business,A008908
North West Leicestershire District Council ,31UH,Leisure Centres,HLC,Hermitage Leisure Centre,Events and Festivals,14/12/2011,1226719,"3,146.40",Snibston Discovery Park,A034571
North West Leicestershire District Council ,31UH,Housing Repairs,HRAHRM,HRA Housing Repairs & Maintenance,Building Services,14/12/2011,1226732,"2,896.15",J Tomlinson Ltd,A033342
North West Leicestershire District Council ,31UH,Property Services,PROPFM,Property Facilities Management,Energy - Electricity - Contract 1,14/12/2011,1226733,"3,821.14",Southern Electric,A030266
North West Leicestershire District Council ,31UH,Environmental Health,EES,Environmental Services,Grant payment,14/12/2011,1226862,"2,505.00",Leicestershire County Council,A038469
North West Leicestershire District Council ,31UH,Legal & Democratic,LDLS,Legal Services,Books - Legal,14/12/2011,1226863,"1,650.00",Sweet & Maxwell Ltd,A001611
North West Leicestershire District Council ,31UH,Leisure & Culture,CULTIC,Cultural Services TIC,Events and Festivals,14/12/2011,1226865,504.00,Moira Furnace Museum Trust Ltd,A001136
North West Leicestershire District Council ,31UH,Leisure & Culture,CULTIC,Cultural Services TIC,Grants,14/12/2011,1226866,"4,218.30",Ashby Dramatic Society,A021686
North West Leicestershire District Council ,31UH,Legal & Democratic,LDLS,Legal Services,Books - Legal,14/12/2011,1226867,"5,910.00",Sweet & Maxwell Ltd,A001611
North West Leicestershire District Council ,31UH,Leisure & Culture,CULTYP,Cultural Services Children & YoungPeople,Grants,14/12/2011,1226890,"10,065.98",East Midlands Housing Assocn,A000530
North West Leicestershire District Council ,31UH,Leisure & Culture,CULTYP,Cultural Services Children & YoungPeople,Social Work - Home visiting scheme,14/12/2011,1226891,"4,905.00",Homestart (N.W. Leics),A000780
North West Leicestershire District Council ,31UH,Finance,FINPLA,Financial Planning,Leasing - Vehicles and Equipment,14/12/2011,1226892,"9,263.79",SG Equipment Finance Limited,A030097
North West Leicestershire District Council ,31UH,Finance,FINPLA,Financial Planning,Leasing - Vehicles and Equipment,14/12/2011,1226893,"22,844.51",SG Equipment Finance Limited,A030097
North West Leicestershire District Council ,31UH,Finance,FINPLA,Financial Planning,Leasing - Vehicles and Equipment,14/12/2011,1226894,"10,769.95",SG Equipment Finance Limited,A030097
North West Leicestershire District Council ,31UH,Housing Repairs,HRAHRM,HRA Housing Repairs & Maintenance,Fuel servicing (Hsg Maintenance),14/12/2011,1226897,"2,635.92",Elite Sweep Service,A035675
North West Leicestershire District Council ,31UH,Leisure & Culture,CULTYP,Cultural Services Children & YoungPeople,Partnership Funding,14/12/2011,1226898,"1,012.00",North West Leicestershire,A013575
North West Leicestershire District Council ,31UH,Finance,EXCH,Exchequer Services,Debt Collection,14/12/2011,1226901,"1,110.17",Kings Armoured Security Services Ltd,A004468
North West Leicestershire District Council ,31UH,Environmental Health,EES,Environmental Services,Plumbing and heating contractors,14/12/2011,1226903,"3,670.00",C V Lane & Son,A000922
North West Leicestershire District Council ,31UH,Finance,FINPLA,Financial Planning,Leasing - Vehicles,14/12/2011,1226904,"4,913.69",JCB Finance (Leasing) Ltd,A033051
North West Leicestershire District Council ,31UH,Leisure Centres,HPLC,Hood Park Leisure Centre,claim,14/12/2011,1226908,"1,154.34",Measham Leisure Centre,A027454
North West Leicestershire District Council ,31UH,Planning & Development,EDC,Environment - Development Control,Training,14/12/2011,1226955,"1,372.92",Hinckley & Bosworth Borough Council,A000770
North West Leicestershire District Council ,31UH,Planning & Development,EDC,Environment - Development Control,Books - Legal,14/12/2011,1226957,553.00,Sweet & Maxwell Ltd,A001611
North West Leicestershire District Council ,31UH,Planning & Development,EDC,Environment - Development Control,Consultancy - Habitats Regulations,14/12/2011,1226958,"1,680.00",David Tyldesley and Associates,A037619
North West Leicestershire District Council ,31UH,Finance,EXCH,Exchequer Services,Recruitment - Agency Broker,14/12/2011,1226959,"5,372.99",Comensura Limited,A036958
North West Leicestershire District Council ,31UH,Finance,EXCH,Exchequer Services,IT - software services,14/12/2011,1226960,926.24,Selima Limited,A010859
North West Leicestershire District Council ,31UH,Finance,EXCH,Exchequer Services,NNDR Contribution,21/12/2011,1227522,"1,893,813.00",Department for Communities & Local Government,A028518
North West Leicestershire District Council ,31UH,Information Technology,ICT,ICT Services,Photocopiers and consumables,21/12/2011,1227528,"5,526.13",The Danwood Group Ltd,A001301
North West Leicestershire District Council ,31UH,Neighbourhoods & Communities,NACN,N & C Neighbourhoods,Repairs,21/12/2011,1227078,800.00,Thringstone Miners Welfare Football Club,A037709
North West Leicestershire District Council ,31UH,Neighbourhoods & Communities,NACN,N & C Neighbourhoods,Grant payment,21/12/2011,1227082,"1,720.83",Age Concern Leicestershire & Rutland (Welfare services) ltd,A027552
North West Leicestershire District Council ,31UH,Leisure Centres,HPLC,Hood Park Leisure Centre,Energy - Electricity - Contract 1,21/12/2011,1227137,"1,530.84",Southern Electric,A030266
North West Leicestershire District Council ,31UH,Leisure Centres,HPLC,Hood Park Leisure Centre,Telecommunication - Line Rental,21/12/2011,1227138,580.83,Virgin Media Business,A035373
North West Leicestershire District Council ,31UH,Leisure Centres,HPLC,Hood Park Leisure Centre,Water - Sewerage services,21/12/2011,1227139,995.48,Severn Trent Water Limited,A001468
North West Leicestershire District Council ,31UH,Leisure Centres,HPLC,Hood Park Leisure Centre,Water - Sewerage services,21/12/2011,1227140,800.00,Severn Trent Water Limited,A001468
North West Leicestershire District Council ,31UH,Leisure Centres,HLC,Hermitage Leisure Centre,Energy - Electricity - Contract 1,21/12/2011,1227141,"2,087.68",Southern Electric,A030266
North West Leicestershire District Council ,31UH,Leisure Centres,HLC,Hermitage Leisure Centre,Water - Sewerage services,21/12/2011,1227142,650.00,Severn Trent Water Limited,A001468
North West Leicestershire District Council ,31UH,Leisure Centres,HLC,Hermitage Leisure Centre,Water - Sewerage services,21/12/2011,1227146,912.24,Severn Trent Water Limited,A001468
North West Leicestershire District Council ,31UH,Environmental Health,EES,Environmental Services,Animals - Boarding Kennels,21/12/2011,1227420,"1,164.40",College Garth Boarding Kennels,A000385
North West Leicestershire District Council ,31UH,Planning & Development,ECCTV,Environment - Town Centre/CCTV,Energy - Electricity - Contract 1,21/12/2011,1227421,989.55,Southern Electric,A030266
North West Leicestershire District Council ,31UH,Environmental Health,EES,Environmental Services,Grant payment,21/12/2011,1227423,"4,610.00",Leicestershire County Council,A038469
North West Leicestershire District Council ,31UH,Environmental Health,EES,Environmental Services,Grant payment,21/12/2011,1227429,"3,046.96",Adaptions,A038668
North West Leicestershire District Council ,31UH,Housing Repairs,HRAHRM,HRA Housing Repairs & Maintenance,Building Services,21/12/2011,1227471,"4,126.81",J Tomlinson Ltd,A033342
North West Leicestershire District Council ,31UH,Housing Repairs,HRAHRM,HRA Housing Repairs & Maintenance,Building Services,21/12/2011,1227472,"5,526.96",J Tomlinson Ltd,A033342
North West Leicestershire District Council ,31UH,Housing Repairs,HRAHRM,HRA Housing Repairs & Maintenance,PPE,21/12/2011,1227473,"1,039.12",Westbury Industrial Supplies Limited,A009933
North West Leicestershire District Council ,31UH,Leisure & Culture,CULTYP,Cultural Services Children & YoungPeople,Breast Feeding Funding,21/12/2011,1227491,"5,289.86",Leicestershire Partnership NHS Trust,A038707
North West Leicestershire District Council ,31UH,Leisure & Culture,CULTYP,Cultural Services Children & YoungPeople,Grant payment,21/12/2011,1227500,"1,732.50",Safe Start-Home Safety,A039090
North West Leicestershire District Council ,31UH,Finance,EXCH,Exchequer Services,Recruitment - Agency Broker,21/12/2011,1227609,"4,748.13",Comensura Limited,A036958
North West Leicestershire District Council ,31UH,Housing Repairs,HRAHRM,HRA Housing Repairs & Maintenance,Gas & Electricity - Boiler replacement,30/11/2011,1226044,869.02,Lakers UK,A031787
North West Leicestershire District Council ,31UH,Housing Repairs,HRAHRM,HRA Housing Repairs & Maintenance,Gas & Electricity - Boiler replacement,30/11/2011,1226090,539.00,Lakers UK,A031787
North West Leicestershire District Council ,31UH,Housing Repairs,HRAHRM,HRA Housing Repairs & Maintenance,Gas & Electricity - Boiler replacement,30/11/2011,1226093,671.77,Lakers UK,A031787
North West Leicestershire District Council ,31UH,Housing Repairs,HRAHRM,HRA Housing Repairs & Maintenance,Gas & Electricity - Boiler replacement,30/11/2011,1226157,"1,623.03",Lakers UK,A031787
North West Leicestershire District Council ,31UH,Housing Repairs,HRAHRM,HRA Housing Repairs & Maintenance,Gas & Electricity - Boiler replacement,30/11/2011,1226166,"2,446.15",Lakers UK,A031787
North West Leicestershire District Council ,31UH,Housing Repairs,HRAHRM,HRA Housing Repairs & Maintenance,Gas & Electricity - Boiler replacement,30/11/2011,1226167,"1,995.86",Lakers UK,A031787
North West Leicestershire District Council ,31UH,Housing Repairs,HRAHRM,HRA Housing Repairs & Maintenance,Gas & Electricity - Boiler replacement,30/11/2011,1226168,"1,494.01",Lakers UK,A031787
North West Leicestershire District Council ,31UH,Housing Repairs,HRAHRM,HRA Housing Repairs & Maintenance,Gas & Electricity - Boiler replacement,30/11/2011,1226169,"2,036.50",Lakers UK,A031787
North West Leicestershire District Council ,31UH,Housing Repairs,HRAHRM,HRA Housing Repairs & Maintenance,Gas & Electricity - Boiler replacement,30/11/2011,1226173,790.56,Lakers UK,A031787
North West Leicestershire District Council ,31UH,Housing Repairs,HRAHRM,HRA Housing Repairs & Maintenance,Gas & Electricity - Boiler replacement,30/11/2011,1226174,750.00,Lakers UK,A031787
North West Leicestershire District Council ,31UH,Housing Repairs,HRAHRM,HRA Housing Repairs & Maintenance,Gas & Electricity - Boiler replacement,30/11/2011,1226175,"1,351.74",Lakers UK,A031787
North West Leicestershire District Council ,31UH,Housing Repairs,HRAHRM,HRA Housing Repairs & Maintenance,Construction - Rewire Works,30/11/2011,1226130,"2,369.80",Lovell Respond,A038131
North West Leicestershire District Council ,31UH,Housing Repairs,HRAHRM,HRA Housing Repairs & Maintenance,Construction - Rewire Works,30/11/2011,1226131,"2,440.04",Lovell Respond,A038131
North West Leicestershire District Council ,31UH,Housing Repairs,HRAHRM,HRA Housing Repairs & Maintenance,Construction - Rewire Works,30/11/2011,1226132,"2,394.80",Lovell Respond,A038131
North West Leicestershire District Council ,31UH,Housing Repairs,HRAHRM,HRA Housing Repairs & Maintenance,Construction - Rewire Works,30/11/2011,1226133,"2,206.46",Lovell Respond,A038131
North West Leicestershire District Council ,31UH,Housing Repairs,HRAHRM,HRA Housing Repairs & Maintenance,Construction - Rewire Works,30/11/2011,1226134,"2,032.42",Lovell Respond,A038131
North West Leicestershire District Council ,31UH,Housing Repairs,HRAHRM,HRA Housing Repairs & Maintenance,Construction - Rewire Works,30/11/2011,1226135,"2,357.48",Lovell Respond,A038131
North West Leicestershire District Council ,31UH,Housing Repairs,HRAHRM,HRA Housing Repairs & Maintenance,Construction - Rewire Works,30/11/2011,1226136,"2,451.88",Lovell Respond,A038131
North West Leicestershire District Council ,31UH,Housing Repairs,HRAHRM,HRA Housing Repairs & Maintenance,Construction - Rewire Works,30/11/2011,1226137,"2,102.66",Lovell Respond,A038131
North West Leicestershire District Council ,31UH,Housing Repairs,HRAHRM,HRA Housing Repairs & Maintenance,Construction - Rewire Works,30/11/2011,1226138,"2,102.66",Lovell Respond,A038131
North West Leicestershire District Council ,31UH,Housing Repairs,HRAHRM,HRA Housing Repairs & Maintenance,Construction - Rewire Works,30/11/2011,1226139,"1,911.38",Lovell Respond,A038131
North West Leicestershire District Council ,31UH,Housing Repairs,HRAHRM,HRA Housing Repairs & Maintenance,Construction - Rewire Works,30/11/2011,1226140,"2,277.51",Lovell Respond,A038131
North West Leicestershire District Council ,31UH,Housing Repairs,HRAHRM,HRA Housing Repairs & Maintenance,Construction - Rewire Works,30/11/2011,1226141,"2,194.95",Lovell Respond,A038131
North West Leicestershire District Council ,31UH,Housing Repairs,HRAHRM,HRA Housing Repairs & Maintenance,Construction - Rewire Works,30/11/2011,1226142,"2,255.51",Lovell Respond,A038131
North West Leicestershire District Council ,31UH,Housing Repairs,HRAHRM,HRA Housing Repairs & Maintenance,Construction - Rewire Works,30/11/2011,1226143,"2,277.51",Lovell Respond,A038131
North West Leicestershire District Council ,31UH,Housing Repairs,HRAHRM,HRA Housing Repairs & Maintenance,Construction - Rewire Works,30/11/2011,1226144,"2,207.27",Lovell Respond,A038131
North West Leicestershire District Council ,31UH,Housing Repairs,HRAHRM,HRA Housing Repairs & Maintenance,Construction - Rewire Works,30/11/2011,1226145,"2,194.95",Lovell Respond,A038131
North West Leicestershire District Council ,31UH,Housing Repairs,HRAHRM,HRA Housing Repairs & Maintenance,Construction - Rewire Works,30/11/2011,1226146,"1,863.14",Lovell Respond,A038131
North West Leicestershire District Council ,31UH,Housing Repairs,HRAHRM,HRA Housing Repairs & Maintenance,Construction - Rewire Works,30/11/2011,1226147,"2,095.91",Lovell Respond,A038131
North West Leicestershire District Council ,31UH,Housing Repairs,HRAHRM,HRA Housing Repairs & Maintenance,Construction - Rewire Works,30/11/2011,1226148,"2,375.74",Lovell Respond,A038131
North West Leicestershire District Council ,31UH,Housing Repairs,HRAHRM,HRA Housing Repairs & Maintenance,Construction - Rewire Works,30/11/2011,1226149,"2,265.19",Lovell Respond,A038131
North West Leicestershire District Council ,31UH,Housing Repairs,HRAHRM,HRA Housing Repairs & Maintenance,Construction - Rewire Works,30/11/2011,1226150,"2,050.67",Lovell Respond,A038131
North West Leicestershire District Council ,31UH,Housing Repairs,HRAHRM,HRA Housing Repairs & Maintenance,Construction - Rewire Works,30/11/2011,1226151,"2,440.04",Lovell Respond,A038131
North West Leicestershire District Council ,31UH,Housing Repairs,HRAHRM,HRA Housing Repairs & Maintenance,Construction - Rewire Works,30/11/2011,1226152,"2,465.04",Lovell Respond,A038131
North West Leicestershire District Council ,31UH,Housing Repairs,HRAHRM,HRA Housing Repairs & Maintenance,Construction - Rewire Works,30/11/2011,1226153,"2,369.80",Lovell Respond,A038131
North West Leicestershire District Council ,31UH,Housing Repairs,HRAHRM,HRA Housing Repairs & Maintenance,Construction - Rewire Works,30/11/2011,1226154,"2,491.28",Lovell Respond,A038131
North West Leicestershire District Council ,31UH,Housing Repairs,HRAHRM,HRA Housing Repairs & Maintenance,Construction - Rewire Works,30/11/2011,1226155,"2,032.42",Lovell Respond,A038131
North West Leicestershire District Council ,31UH,Housing Repairs,HRAHRM,HRA Housing Repairs & Maintenance,Security Systems - Fire Detection,07/12/2011,1226356,643.00,TECSERV UK LIMITED,A028261
North West Leicestershire District Council ,31UH,Housing Repairs,HRAHRM,HRA Housing Repairs & Maintenance,Building - General Maintenance works - Minor framework,07/12/2011,1226357,"1,390.00",Alf Wright Construction Limited,A036239
North West Leicestershire District Council ,31UH,Housing Repairs,HRAHRM,HRA Housing Repairs & Maintenance,Construction - Rewire Works,14/12/2011,1226746,"2,095.91",Lovell Respond,A038131
North West Leicestershire District Council ,31UH,Housing Repairs,HRAHRM,HRA Housing Repairs & Maintenance,Construction - Rewire Works,14/12/2011,1226747,"2,207.27",Lovell Respond,A038131
North West Leicestershire District Council ,31UH,Housing Repairs,HRAHRM,HRA Housing Repairs & Maintenance,Construction - Rewire Works,14/12/2011,1226748,"2,207.27",Lovell Respond,A038131
North West Leicestershire District Council ,31UH,Housing Repairs,HRAHRM,HRA Housing Repairs & Maintenance,Construction - Rewire Works,14/12/2011,1226749,"2,454.31",Lovell Respond,A038131
North West Leicestershire District Council ,31UH,Housing Repairs,HRAHRM,HRA Housing Repairs & Maintenance,Construction - Rewire Works,14/12/2011,1226750,"2,799.29",Lovell Respond,A038131
North West Leicestershire District Council ,31UH,Housing Repairs,HRAHRM,HRA Housing Repairs & Maintenance,Construction - Rewire Works,14/12/2011,1226751,"2,760.89",Lovell Respond,A038131
North West Leicestershire District Council ,31UH,Housing Repairs,HRAHRM,HRA Housing Repairs & Maintenance,Construction - Rewire Works,14/12/2011,1226752,"3,080.99",Lovell Respond,A038131
North West Leicestershire District Council ,31UH,Housing Repairs,HRAHRM,HRA Housing Repairs & Maintenance,Construction - Rewire Works,14/12/2011,1226753,"2,302.51",Lovell Respond,A038131
North West Leicestershire District Council ,31UH,Housing Repairs,HRAHRM,HRA Housing Repairs & Maintenance,Construction - Rewire Works,14/12/2011,1226754,"2,207.27",Lovell Respond,A038131
North West Leicestershire District Council ,31UH,Housing Repairs,HRAHRM,HRA Housing Repairs & Maintenance,Construction - Rewire Works,14/12/2011,1226755,"2,823.34",Lovell Respond,A038131
North West Leicestershire District Council ,31UH,Housing Repairs,HRAHRM,HRA Housing Repairs & Maintenance,Construction - Rewire Works,14/12/2011,1226756,"2,194.95",Lovell Respond,A038131
North West Leicestershire District Council ,31UH,Housing Repairs,HRAHRM,HRA Housing Repairs & Maintenance,Construction - Rewire Works,14/12/2011,1226757,"2,409.96",Lovell Respond,A038131
North West Leicestershire District Council ,31UH,Housing Repairs,HRAHRM,HRA Housing Repairs & Maintenance,Construction - Rewire Works,14/12/2011,1226758,"2,207.27",Lovell Respond,A038131
North West Leicestershire District Council ,31UH,Housing Repairs,HRAHRM,HRA Housing Repairs & Maintenance,Construction - Rewire Works,14/12/2011,1226759,"2,325.75",Lovell Respond,A038131
North West Leicestershire District Council ,31UH,Housing Repairs,HRAHRM,HRA Housing Repairs & Maintenance,Construction - Rewire Works,14/12/2011,1226760,"2,325.75",Lovell Respond,A038131
North West Leicestershire District Council ,31UH,Housing Repairs,HRAHRM,HRA Housing Repairs & Maintenance,Construction - Rewire Works,14/12/2011,1226761,"2,369.80",Lovell Respond,A038131
North West Leicestershire District Council ,31UH,Housing Repairs,HRAHRM,HRA Housing Repairs & Maintenance,Construction - Rewire Works,14/12/2011,1226762,"2,384.07",Lovell Respond,A038131
North West Leicestershire District Council ,31UH,Housing Repairs,HRAHRM,HRA Housing Repairs & Maintenance,Construction - Rewire Works,14/12/2011,1226763,"2,277.51",Lovell Respond,A038131
North West Leicestershire District Council ,31UH,Housing Repairs,HRAHRM,HRA Housing Repairs & Maintenance,Construction - Rewire Works,14/12/2011,1226764,"2,207.27",Lovell Respond,A038131
North West Leicestershire District Council ,31UH,Housing Repairs,HRAHRM,HRA Housing Repairs & Maintenance,Construction - Rewire Works,14/12/2011,1226765,"2,219.95",Lovell Respond,A038131
North West Leicestershire District Council ,31UH,Housing Repairs,HRAHRM,HRA Housing Repairs & Maintenance,Construction - Rewire Works,14/12/2011,1226766,"2,207.27",Lovell Respond,A038131
North West Leicestershire District Council ,31UH,Housing Repairs,HRAHRM,HRA Housing Repairs & Maintenance,Construction - Rewire Works,14/12/2011,1226767,"2,373.99",Lovell Respond,A038131
North West Leicestershire District Council ,31UH,Housing Repairs,HRAHRM,HRA Housing Repairs & Maintenance,Construction - Rewire Works,14/12/2011,1226792,521.35,Lovell Respond,A038131
North West Leicestershire District Council ,31UH,Housing Repairs,HRAHRM,HRA Housing Repairs & Maintenance,Gas & Electricity - Boiler replacement,14/12/2011,1226799,975.85,Lakers UK,A031787
North West Leicestershire District Council ,31UH,Housing Repairs,HRAHRM,HRA Housing Repairs & Maintenance,Gas & Electricity - Boiler replacement,14/12/2011,1226804,"1,634.55",Lakers UK,A031787
North West Leicestershire District Council ,31UH,Housing Repairs,HRAHRM,HRA Housing Repairs & Maintenance,Gas & Electricity - Boiler replacement,14/12/2011,1226806,"1,054.76",Lakers UK,A031787
North West Leicestershire District Council ,31UH,Housing Repairs,HRAHRM,HRA Housing Repairs & Maintenance,Gas & Electricity - Boiler replacement,14/12/2011,1226809,"2,126.24",Lakers UK,A031787
North West Leicestershire District Council ,31UH,Housing Repairs,HRAHRM,HRA Housing Repairs & Maintenance,Gas & Electricity - Boiler replacement,14/12/2011,1226810,"2,033.49",Lakers UK,A031787
North West Leicestershire District Council ,31UH,Housing Repairs,HRAHRM,HRA Housing Repairs & Maintenance,Gas & Electricity - Boiler replacement,14/12/2011,1226811,"1,997.79",Lakers UK,A031787
North West Leicestershire District Council ,31UH,Housing Repairs,HRAHRM,HRA Housing Repairs & Maintenance,Gas & Electricity - Boiler replacement,14/12/2011,1226812,570.00,Lakers UK,A031787
North West Leicestershire District Council ,31UH,Housing Repairs,HRAHRM,HRA Housing Repairs & Maintenance,Gas & Electricity - Boiler replacement,14/12/2011,1226832,"3,915.76",Lakers UK,A031787
North West Leicestershire District Council ,31UH,Housing Repairs,HRAHRM,HRA Housing Repairs & Maintenance,Gas & Electricity - Boiler replacement,14/12/2011,1226833,"3,610.52",Lakers UK,A031787
North West Leicestershire District Council ,31UH,Housing Repairs,HRAHRM,HRA Housing Repairs & Maintenance,Gas & Electricity - Boiler replacement,14/12/2011,1226836,"2,995.70",Lakers UK,A031787
North West Leicestershire District Council ,31UH,Housing Repairs,HRAHRM,HRA Housing Repairs & Maintenance,Gas & Electricity - Boiler replacement,14/12/2011,1226839,"1,235.85",Lakers UK,A031787
North West Leicestershire District Council ,31UH,Housing Repairs,HRAHRM,HRA Housing Repairs & Maintenance,Gas & Electricity - Boiler replacement,14/12/2011,1226840,952.01,Lakers UK,A031787
North West Leicestershire District Council ,31UH,Housing Repairs,HRAHRM,HRA Housing Repairs & Maintenance,Gas & Electricity - Boiler replacement,14/12/2011,1226841,"1,411.86",Lakers UK,A031787
North West Leicestershire District Council ,31UH,Housing Repairs,HRAHRM,HRA Housing Repairs & Maintenance,Gas & Electricity - Boiler replacement,14/12/2011,1226843,"1,422.84",Lakers UK,A031787
North West Leicestershire District Council ,31UH,Housing Repairs,HRAHRM,HRA Housing Repairs & Maintenance,Building Services - Housing - HPIP 9 - 10,21/12/2011,1227121,"3,245.42",Apollo Property Services Group Limited,A036945
North West Leicestershire District Council ,31UH,Housing Repairs,HRAHRM,HRA Housing Repairs & Maintenance,Building Services - Housing - HPIP 9 - 10,21/12/2011,1227122,"3,245.42",Apollo Property Services Group Limited,A036945
North West Leicestershire District Council ,31UH,Housing Repairs,HRAHRM,HRA Housing Repairs & Maintenance,Building Services - Housing - HPIP 9 - 10,21/12/2011,1227123,"3,245.42",Apollo Property Services Group Limited,A036945
North West Leicestershire District Council ,31UH,Housing Repairs,HRAHRM,HRA Housing Repairs & Maintenance,Building Services - Housing - HPIP 9 - 10,21/12/2011,1227124,"3,245.42",Apollo Property Services Group Limited,A036945
North West Leicestershire District Council ,31UH,Housing Repairs,HRAHRM,HRA Housing Repairs & Maintenance,Building Services - Housing - HPIP 9 - 10,21/12/2011,1227125,"3,933.75",Apollo Property Services Group Limited,A036945
North West Leicestershire District Council ,31UH,Housing Repairs,HRAHRM,HRA Housing Repairs & Maintenance,Building Services - Housing - HPIP 9 - 10,21/12/2011,1227126,"3,933.75",Apollo Property Services Group Limited,A036945
North West Leicestershire District Council ,31UH,Housing Repairs,HRAHRM,HRA Housing Repairs & Maintenance,Building Services - Housing - HPIP 9 - 10,21/12/2011,1227127,"3,662.14",Apollo Property Services Group Limited,A036945
North West Leicestershire District Council ,31UH,Housing Repairs,HRAHRM,HRA Housing Repairs & Maintenance,Building Services - Housing - HPIP 9 - 10,21/12/2011,1227128,"2,274.00",Apollo Property Services Group Limited,A036945
North West Leicestershire District Council ,31UH,Housing Repairs,HRAHRM,HRA Housing Repairs & Maintenance,Gas & Electricity - Boiler replacement,21/12/2011,1227224,511.82,Lakers UK,A031787
North West Leicestershire District Council ,31UH,Housing Repairs,HRAHRM,HRA Housing Repairs & Maintenance,Gas & Electricity - Boiler replacement,21/12/2011,1227227,822.41,Lakers UK,A031787
North West Leicestershire District Council ,31UH,Housing Repairs,HRAHRM,HRA Housing Repairs & Maintenance,Gas & Electricity - Boiler replacement,21/12/2011,1227228,862.50,Lakers UK,A031787
North West Leicestershire District Council ,31UH,Housing Repairs,HRAHRM,HRA Housing Repairs & Maintenance,Gas & Electricity - Boiler replacement,21/12/2011,1227232,"1,631.01",Lakers UK,A031787
North West Leicestershire District Council ,31UH,Housing Repairs,HRAHRM,HRA Housing Repairs & Maintenance,Gas & Electricity - Boiler replacement,21/12/2011,1227233,"2,157.60",Lakers UK,A031787
North West Leicestershire District Council ,31UH,Housing Repairs,HRAHRM,HRA Housing Repairs & Maintenance,Gas & Electricity - Boiler replacement,21/12/2011,1227234,"1,797.92",Lakers UK,A031787
North West Leicestershire District Council ,31UH,Housing Repairs,HRAHRM,HRA Housing Repairs & Maintenance,Gas & Electricity - Boiler replacement,21/12/2011,1227235,"1,955.72",Lakers UK,A031787
North West Leicestershire District Council ,31UH,Housing Repairs,HRAHRM,HRA Housing Repairs & Maintenance,Gas & Electricity - Boiler replacement,21/12/2011,1227236,"3,167.60",Lakers UK,A031787
North West Leicestershire District Council ,31UH,Housing Repairs,HRAHRM,HRA Housing Repairs & Maintenance,Gas & Electricity - Boiler replacement,21/12/2011,1227237,"1,221.11",Lakers UK,A031787
North West Leicestershire District Council ,31UH,Housing Repairs,HRAHRM,HRA Housing Repairs & Maintenance,Gas & Electricity - Boiler replacement,21/12/2011,1227238,575.00,Lakers UK,A031787
North West Leicestershire District Council ,31UH,Housing Repairs,HRAHRM,HRA Housing Repairs & Maintenance,Gas & Electricity - Boiler replacement,21/12/2011,1227242,691.74,Lakers UK,A031787
North West Leicestershire District Council ,31UH,Housing Repairs,HRAHRM,HRA Housing Repairs & Maintenance,Gas & Electricity - Boiler replacement,21/12/2011,1227331,865.00,Lakers UK,A031787
North West Leicestershire District Council ,31UH,Housing Repairs,HRAHRM,HRA Housing Repairs & Maintenance,Gas & Electricity - Boiler replacement,21/12/2011,1227348,712.61,Lakers UK,A031787
North West Leicestershire District Council ,31UH,Housing Repairs,HRAHRM,HRA Housing Repairs & Maintenance,Gas & Electricity - Boiler replacement,21/12/2011,1227402,"1,056.00",Lakers UK,A031787
North West Leicestershire District Council ,31UH,Housing Repairs,HRAHRM,HRA Housing Repairs & Maintenance,Gas & Electricity - Boiler replacement,21/12/2011,1227403,947.03,Lakers UK,A031787
North West Leicestershire District Council ,31UH,Housing Repairs,HRAHRM,HRA Housing Repairs & Maintenance,Building Services - Housing - HPIP 9 - 10,21/12/2011,1227539,"6,500.56",Apollo Property Services Group Limited,A036945
North West Leicestershire District Council ,31UH,Housing Repairs,HRAHRM,HRA Housing Repairs & Maintenance,Building Services - Housing - HPIP 9 - 10,21/12/2011,1227540,"5,227.14",Apollo Property Services Group Limited,A036945
North West Leicestershire District Council ,31UH,Housing Repairs,HRAHRM,HRA Housing Repairs & Maintenance,Building Services - Housing - HPIP 9 - 10,21/12/2011,1227541,"5,227.14",Apollo Property Services Group Limited,A036945
North West Leicestershire District Council ,31UH,Housing Repairs,HRAHRM,HRA Housing Repairs & Maintenance,Building Services - Housing - HPIP 9 - 10,21/12/2011,1227542,"4,641.44",Apollo Property Services Group Limited,A036945
North West Leicestershire District Council ,31UH,Housing Repairs,HRAHRM,HRA Housing Repairs & Maintenance,Building Services - Housing - HPIP 9 - 10,21/12/2011,1227543,"4,641.44",Apollo Property Services Group Limited,A036945
North West Leicestershire District Council ,31UH,Housing Repairs,HRAHRM,HRA Housing Repairs & Maintenance,Building Services - Housing - HPIP 9 - 10,21/12/2011,1227544,"3,978.85",Apollo Property Services Group Limited,A036945
North West Leicestershire District Council ,31UH,Housing Repairs,HRAHRM,HRA Housing Repairs & Maintenance,Building Services - Housing - HPIP 9 - 10,21/12/2011,1227545,"3,792.50",Apollo Property Services Group Limited,A036945
North West Leicestershire District Council ,31UH,Housing Repairs,HRAHRM,HRA Housing Repairs & Maintenance,Building Services - Housing - HPIP 9 - 10,21/12/2011,1227546,"3,792.50",Apollo Property Services Group Limited,A036945
North West Leicestershire District Council ,31UH,Housing Repairs,HRAHRM,HRA Housing Repairs & Maintenance,Building Services - Housing - HPIP 9 - 10,21/12/2011,1227547,"3,978.85",Apollo Property Services Group Limited,A036945
North West Leicestershire District Council ,31UH,Housing Repairs,HRAHRM,HRA Housing Repairs & Maintenance,Building Services - Housing - HPIP 9 - 10,21/12/2011,1227548,"6,110.44",Apollo Property Services Group Limited,A036945
North West Leicestershire District Council ,31UH,Housing Repairs,HRAHRM,HRA Housing Repairs & Maintenance,Building Services - Housing - HPIP 9 - 10,21/12/2011,1227549,"5,950.44",Apollo Property Services Group Limited,A036945
North West Leicestershire District Council ,31UH,Housing Repairs,HRAHRM,HRA Housing Repairs & Maintenance,Building Services - Housing - HPIP 9 - 10,21/12/2011,1227550,"6,500.56",Apollo Property Services Group Limited,A036945
North West Leicestershire District Council ,31UH,Housing Repairs,HRAHRM,HRA Housing Repairs & Maintenance,Building Services - Housing - HPIP 9 - 10,21/12/2011,1227551,"5,950.44",Apollo Property Services Group Limited,A036945
North West Leicestershire District Council ,31UH,Housing Repairs,HRAHRM,HRA Housing Repairs & Maintenance,Building Services - Housing - HPIP 9 - 10,21/12/2011,1227552,"5,950.44",Apollo Property Services Group Limited,A036945
North West Leicestershire District Council ,31UH,Housing Repairs,HRAHRM,HRA Housing Repairs & Maintenance,Building Services - Housing - HPIP 9 - 10,21/12/2011,1227553,"3,194.68",Apollo Property Services Group Limited,A036945
North West Leicestershire District Council ,31UH,Housing Repairs,HRAHRM,HRA Housing Repairs & Maintenance,Building Services - Housing - HPIP 9 - 10,21/12/2011,1227554,"3,574.68",Apollo Property Services Group Limited,A036945
North West Leicestershire District Council ,31UH,Housing Repairs,HRAHRM,HRA Housing Repairs & Maintenance,Building Services - Housing - HPIP 9 - 10,21/12/2011,1227555,"6,687.56",Apollo Property Services Group Limited,A036945
North West Leicestershire District Council ,31UH,Housing Repairs,HRAHRM,HRA Housing Repairs & Maintenance,Building Services - Housing - HPIP 9 - 10,21/12/2011,1227556,"5,513.98",Apollo Property Services Group Limited,A036945
North West Leicestershire District Council ,31UH,Housing Repairs,HRAHRM,HRA Housing Repairs & Maintenance,Building Services - Housing - HPIP 9 - 10,21/12/2011,1227557,"5,513.98",Apollo Property Services Group Limited,A036945
North West Leicestershire District Council ,31UH,Housing Repairs,HRAHRM,HRA Housing Repairs & Maintenance,Building Services - Housing - HPIP 9 - 10,21/12/2011,1227558,"5,552.51",Apollo Property Services Group Limited,A036945
North West Leicestershire District Council ,31UH,Housing Repairs,HRAHRM,HRA Housing Repairs & Maintenance,Building Services - Housing - HPIP 9 - 10,21/12/2011,1227559,"4,641.44",Apollo Property Services Group Limited,A036945
North West Leicestershire District Council ,31UH,Housing Repairs,HRAHRM,HRA Housing Repairs & Maintenance,Building Services - Housing - HPIP 9 - 10,21/12/2011,1227560,"4,641.44",Apollo Property Services Group Limited,A036945
North West Leicestershire District Council ,31UH,Housing Repairs,HRAHRM,HRA Housing Repairs & Maintenance,Building - General Maintenance works - Minor framework,21/12/2011,1227561,"10,145.00",Alf Wright Construction Limited,A036239
North West Leicestershire District Council ,31UH,Housing Repairs,HRAHRM,HRA Housing Repairs & Maintenance,Building - General Maintenance works - Minor framework,21/12/2011,1227562,"3,376.80",Alf Wright Construction Limited,A036239
North West Leicestershire District Council ,31UH,Housing Repairs,HRAHRM,HRA Housing Repairs & Maintenance,Gas & Electricity - Boiler replacement,21/12/2011,1227563,"7,761.92",Lakers UK,A031787
North West Leicestershire District Council ,31UH,Housing Repairs,HRAHRM,HRA Housing Repairs & Maintenance,Gas & Electricity - Boiler replacement,21/12/2011,1227564,694.01,Lakers UK,A031787
North West Leicestershire District Council ,31UH,Housing Repairs,HRAHRM,HRA Housing Repairs & Maintenance,Gas & Electricity - Boiler replacement,21/12/2011,1227566,"1,231.81",Lakers UK,A031787
North West Leicestershire District Council ,31UH,Housing Repairs,HRAHRM,HRA Housing Repairs & Maintenance,Gas & Electricity - Boiler replacement,21/12/2011,1227567,"2,945.33",Lakers UK,A031787
North West Leicestershire District Council ,31UH,Housing Repairs,HRAHRM,HRA Housing Repairs & Maintenance,Gas & Electricity - Boiler replacement,21/12/2011,1227568,694.01,Lakers UK,A031787
North West Leicestershire District Council ,31UH,Housing Repairs,HRAHRM,HRA Housing Repairs & Maintenance,Gas & Electricity - Boiler replacement,21/12/2011,1227583,"5,555.25",Lakers UK,A031787
North West Leicestershire District Council ,31UH,Housing Repairs,HRAHRM,HRA Housing Repairs & Maintenance,Gas & Electricity - Boiler replacement,21/12/2011,1227596,"1,552.15",Lakers UK,A031787
North West Leicestershire District Council ,31UH,Housing Repairs,HRAHRM,HRA Housing Repairs & Maintenance,Gas & Electricity - Boiler replacement,21/12/2011,1227597,642.45,Lakers UK,A031787
North West Leicestershire District Council ,31UH,Property Services,PROPCL,Property Commercial Lettings,Building - General Maintenance works - Minor framework,30/11/2011,1224917,"1,416.00",Herbert Baggaley Construction Limited,A036241
North West Leicestershire District Council ,31UH,Finance,HOFI,Head of Finance,Training,30/11/2011,1225724,"13,450.00",Hinckley & Bosworth Borough Council,A000770
North West Leicestershire District Council ,31UH,Housing Strategy,HS,Community - Housing Strategy,Accomodation - Bed and Breakfast for Housing Strategy,30/11/2011,1225734,700.00,Pinewood Lodge,A032364
North West Leicestershire District Council ,31UH,Leisure Centres,HPLC,Hood Park Leisure Centre,Licenses - Music,30/11/2011,1225808,"2,961.83",The Performing Right Society,A001293
North West Leicestershire District Council ,31UH,Planning & Development,EPP,Environment Planning Policy,Heating,30/11/2011,1225921,"1,016.00",Confetti Magic Ltd,A038988
North West Leicestershire District Council ,31UH,Street Management,ENOT,Environment Transport,Vehicle Parts,07/12/2011,1226190,652.45,Dennis Eagle Limited,A000522
North West Leicestershire District Council ,31UH,Leisure & Culture,CULTEV,Cultural Services Arts & Events,Sound & Lighting - Corporate Events,07/12/2011,1226021,"1,976.00",Chameleon Pro Audio & Lighting Ltd,A027592
North West Leicestershire District Council ,31UH,Street Management,ENOT,Environment Transport,Supplies - Steel wire,07/12/2011,1226187,"1,800.00",Caparo Wire,A038387
North West Leicestershire District Council ,31UH,Leisure Centres,HLC,Hermitage Leisure Centre,Consultancy,07/12/2011,1226248,"6,500.00",Wigan Leisure & Culture Trust,A039019
North West Leicestershire District Council ,31UH,Property Services,PROPCL,Property Commercial Lettings,Rental Charges,07/12/2011,1226251,516.05,Pitney Bowes Finance Plc,A032630
North West Leicestershire District Council ,31UH,Planning & Development,EPP,Environment Planning Policy,Charity Services - Voluntary services,07/12/2011,1226346,"1,000.00",MRC Community Action,A001208
North West Leicestershire District Council ,31UH,Planning & Development,ECCTV,Environment - Town Centre/CCTV,Events - Seasonal - Christmas lighting,07/12/2011,1226477,"4,895.00",Turnock Ltd,A023267
North West Leicestershire District Council ,31UH,Housing Strategy,HS,Community - Housing Strategy,Accomodation - Bed and Breakfast for Housing Strategy,14/12/2011,1226587,700.00,Pinewood Lodge,A032364
North West Leicestershire District Council ,31UH,Leisure Centres,CDCC,Castle Donington Community College,Training - Sports Leisure partnerships,14/12/2011,1226660,"7,470.00",Castle Donington Community College,A000302
North West Leicestershire District Council ,31UH,Leisure Centres,CDCC,Castle Donington Community College,Training - Sports Leisure partnerships,14/12/2011,1226661,"7,470.00",Castle Donington Community College,A000302
North West Leicestershire District Council ,31UH,Street Management,ENOP,Environment Parks,Grounds Maintenance - Landscaping,14/12/2011,1226627,"2,068.00",Manor Landscapes,A035186
North West Leicestershire District Council ,31UH,Planning & Development,ECCTV,Environment - Town Centre/CCTV,Security - Provide Monitoring Services in respect of CCTV,14/12/2011,1226604,"4,061.75",Premier Security Services (Midlands) Limited,A038132
North West Leicestershire District Council ,31UH,Planning & Development,ECP,Environment Community Planning,Fees and Expenses,14/12/2011,1226743,"10,222.83",Improvement & Development Agency for Local Government,A027954
North West Leicestershire District Council ,31UH,Leisure & Culture,CULTEV,Cultural Services Arts & Events,Tourism - publicity and promotions,21/12/2011,1227064,500.00,Leicester Shire Promotions Ltd,A028765
North West Leicestershire District Council ,31UH,Information Technology,ICT,ICT Services,IT - security,21/12/2011,1227065,"5,900.00",Foursys Ltd,A029908
North West Leicestershire District Council ,31UH,Street Management,ENOT,Environment Transport,Vehicle Parts - Recycling Vehicles ,21/12/2011,1227056,"1,485.07",Terberg Matec UK Limited,A001647
North West Leicestershire District Council ,31UH,Street Management,ESS,Environment - Street Scene,Parking System - Support,21/12/2011,1227059,"2,500.00",Egov Systems Limited,A027537
North West Leicestershire District Council ,31UH,Communications,CP,Corporate - Communications,Web Design - Ashby website,21/12/2011,1227489,"3,300.00",Socius Limited,A031950
North West Leicestershire District Council ,31UH,Street Management,ENOWM,Environment Waste Management,Advertisement,30/11/2011,1225697,760.00,Coalville Times Ltd,A000374
North West Leicestershire District Council ,31UH,Street Management,ENOT,Environment Transport,Tyre Supplier,30/11/2011,1225711,"1,120.00",Bandvulc Tyres Ltd,A033268
North West Leicestershire District Council ,31UH,Street Management,ENOT,Environment Transport,Tyre Supplier,30/11/2011,1225712,"1,120.00",Bandvulc Tyres Ltd,A033268
North West Leicestershire District Council ,31UH,Planning & Development,ECP,Environment Community Planning,Environment - Cell Grown Trees (Whips),30/11/2011,1225765,637.80,Cheviot Trees Limited,A037926
North West Leicestershire District Council ,31UH,Leisure Centres,HPLC,Hood Park Leisure Centre,Electricity Charges,30/11/2011,1225823,"1,853.87",L.C.C.Ivanhoe College,A002200
North West Leicestershire District Council ,31UH,Information Technology,ICT,ICT Services,IT - Computer Equipment,30/11/2011,1221232,"8,968.49",ComputerLand UK Plc,A031430
North West Leicestershire District Council ,31UH,Property Services,PROPCL,Property Commercial Lettings,Mail Supplies -Franking Machine,07/12/2011,1226250,"3,033.00",Purchase Power,A008204
North West Leicestershire District Council ,31UH,Leisure & Culture,CULTEV,Cultural Services Arts & Events,Room Hire,07/12/2011,1225853,"1,000.00",Agar Nook Community Association,A027517
North West Leicestershire District Council ,31UH,Street Management,ENOP,Environment Parks,Grounds Maintenance - Landscaping,07/12/2011,1226204,800.00,Manor Landscapes,A035186
North West Leicestershire District Council ,31UH,Street Management,ENOT,Environment Transport,Vehicle Parts - Recycling Vehicles ,07/12/2011,1226260,"2,536.00",Terberg Matec UK Limited,A001647
North West Leicestershire District Council ,31UH,Street Management,ENOT,Environment Transport,Vehicle Parts - Recycling Vehicles ,07/12/2011,1226261,765.28,Terberg Matec UK Limited,A001647
North West Leicestershire District Council ,31UH,Information Technology,ICT,ICT Services,IT - Software services,07/12/2011,1226332,"2,485.00",Assurix,A035657
North West Leicestershire District Council ,31UH,Communications,CP,Corporate - Communications,Printing - Lot 3 inc Vision,07/12/2011,1226436,"4,254.00",W & J Linney Limited (Linney Group),A037550
North West Leicestershire District Council ,31UH,Housing Strategy,HS,Community - Housing Strategy,Accomodation - Bed and Breakfast for Housing Strategy,07/12/2011,1226327,700.00,Pinewood Lodge,A032364
North West Leicestershire District Council ,31UH,Housing Strategy,HS,Community - Housing Strategy,Accommodation - Bed and Breakfast,07/12/2011,1226419,585.00,The Cedars,A027796
North West Leicestershire District Council ,31UH,Street Management,ESS,Environment - Street Scene,Environment - Monitoring Equipment - Air Quality,14/12/2011,1226473,"6,000.00",TRL,A036596
North West Leicestershire District Council ,31UH,Housing Strategy,HS,Community - Housing Strategy,Security Products,14/12/2011,1226484,"1,000.00",Victim Support Leicestershire & Rutland,A028977
North West Leicestershire District Council ,31UH,Leisure Centres,HLBC,Hermitage Bar & Catering,Catering Supplies - Beverages,14/12/2011,1226644,826.72,WaverleyTBS Ltd,A032632
North West Leicestershire District Council ,31UH,Leisure & Culture,CULTEV,Cultural Services Arts & Events,Sound & Lighting - Corporate Events,14/12/2011,1224806,915.00,Chameleon Pro Audio & Lighting Ltd,A027592
North West Leicestershire District Council ,31UH,Property Services,PROPFM,Property Facilities Management,Legionella Risk Assessments,14/12/2011,1226682,"1,723.00",Rentokil Initial UK Limited,A037013
North West Leicestershire District Council ,31UH,Planning & Development,EDC,Environment - Development Control,Consultancy,14/12/2011,1226736,"2,002.50",Barton Willmore LLP,A036657
North West Leicestershire District Council ,31UH,Street Management,ENOWM,Environment Waste Management,Waste Disposal - Recyclable containers,14/12/2011,1226870,"19,494.00",Straight Plc,A024906
North West Leicestershire District Council ,31UH,Leisure Centres,HLC,Hermitage Leisure Centre,"Alarm - service contractor, at end of contract will fall into the corporate area",14/12/2011,1226931,"1,117.71",Chubb Electronic Security Ltd,A035910
North West Leicestershire District Council ,31UH,Housing,HRAHM,HRA Housing Management,Accommodation - Hotel,21/12/2011,1227131,520.00,Primrose Hotels Ltd T/A Hermitage Park Hotel,A010779
North West Leicestershire District Council ,31UH,Information Technology,ICT,ICT Services,IT - security,21/12/2011,1227411,"9,518.00",Foursys Ltd,A029908
North West Leicestershire District Council ,31UH,Leisure Centres,HLBC,Hermitage Bar & Catering,Brewery,21/12/2011,1227116,"2,174.79",Scottish & Newcastle UK,A001828
North West Leicestershire District Council ,31UH,Street Management,ENOT,Environment Transport,Gas - Heating,21/12/2011,1227164,527.04,Calor Gas Limited,A032686
North West Leicestershire District Council ,31UH,Street Management,ENOP,Environment Parks,Grounds Maintenance - Landscaping,21/12/2011,1227413,"1,518.00",Manor Landscapes,A035186
North West Leicestershire District Council ,31UH,Housing,HRAPBS,HRA Performance & Business Support,Consultancy Services,21/12/2011,1227611,"3,000.00",Q2 Limited,A035438
North West Leicestershire District Council ,31UH,Housing,HRAOPS,HRA Older Persons Service,Precept/Concessionary Fares Scheme,30/11/2011,1225715,619.10,Leicestershire County Council,A000950
North West Leicestershire District Council ,31UH,Planning & Development,EBC,Building Control,Local Land Charges,30/11/2011,1225773,"1,946.00",Leicestershire County Council,A027423
North West Leicestershire District Council ,31UH,Leisure Centres,HPLC,Hood Park Leisure Centre,Lighting - Lighting Gear and Installation for Floodlights,30/11/2011,1225814,574.00,Charnwood Electrical Limited,A037955
North West Leicestershire District Council ,31UH,Information Technology,ICT,ICT Services,IT - Computer Equipment,30/11/2011,1222512,"51,292.50",ComputerLand UK Plc,A031430
North West Leicestershire District Council ,31UH,Housing,HRAHM,HRA Housing Management,Printing - Lot 2 + 3,30/11/2011,1225696,823.00,The Barkby Thorpe Press,A037241
North West Leicestershire District Council ,31UH,Street Management,ENOP,Environment Parks,Leisure - Playground equipment,07/12/2011,1226192,"3,653.00",Playdale Playgrounds Ltd,A028502
North West Leicestershire District Council ,31UH,Planning & Development,EPP,Environment Planning Policy,Festivals and Events,07/12/2011,1226219,770.00,Animal Enterprises,A034118
North West Leicestershire District Council ,31UH,Information Technology,ICT,ICT Services,Printing,07/12/2011,1226226,"1,040.00",Alfred Willday & Son Ltd,A033406
North West Leicestershire District Council ,31UH,Street Management,ENOT,Environment Transport,Gas - Heating,07/12/2011,1226279,632.45,Calor Gas Limited,A032686
North West Leicestershire District Council ,31UH,Street Management,ENOP,Environment Parks,Building Services,07/12/2011,1226339,"9,500.00",T & T Construction,A001625
North West Leicestershire District Council ,31UH,Housing Repairs,HRAHRM,HRA Housing Repairs & Maintenance,Precept/Concessionary Fares Scheme,07/12/2011,1226582,"14,410.78",Leicestershire County Council,A000950
North West Leicestershire District Council ,31UH,Housing Strategy,HS,Community - Housing Strategy,Accommodation - Bed and Breakfast,07/12/2011,1226422,910.00,The Cedars,A027796
North West Leicestershire District Council ,31UH,Leisure Centres,HLC,Hermitage Leisure Centre,Till and Credit Card Rolls,14/12/2011,1226666,680.00,MHG (Supplies) Ltd,A025712
North West Leicestershire District Council ,31UH,Corporate Director,HR,Human Resources,Consultancy - Finance,14/12/2011,1226675,"2,664.65",R W Nelsey Consultancy,A038049
North West Leicestershire District Council ,31UH,Environmental Health,EEHL,Environmental Health & Licensing,Training - Year Ahead For Regulatory Services,14/12/2011,1226610,755.00,CIEH,A027750
North West Leicestershire District Council ,31UH,Corporate Director,HR,Human Resources,Subscriptions - Advertise all External Vacancies,14/12/2011,1226858,"6,000.00",Jobs Go Public Resourcing  Limited,A018047
North West Leicestershire District Council ,31UH,Property Services,PROPFM,Property Facilities Management,Legionella Risk Assessments,14/12/2011,1226682,"1,723.00",Rentokil Initial UK Limited,A037013
North West Leicestershire District Council ,31UH,Housing Repairs,HRAHRM,HRA Housing Repairs & Maintenance,Advertising Agency,14/12/2011,1225864,"1,038.69",Euro RSCG Riley,A001395
North West Leicestershire District Council ,31UH,Housing,HRAOPS,HRA Older Persons Service,Alarms - older persons system repairs and maintenance,21/12/2011,1227047,"1,124.10",Tunstall Healthcare (UK) Limited,A001701
North West Leicestershire District Council ,31UH,Planning & Development,ECP,Environment Community Planning,Service Level Agreement,21/12/2011,1227051,"9,999.00",Delib,A039059
North West Leicestershire District Council ,31UH,Environmental Health,EES,Environmental Services,Training - Year Ahead For Regulatory Services,21/12/2011,1227417,755.00,CIEH,A027750
North West Leicestershire District Council ,31UH,Street Management,ENOT,Environment Transport,Vehicle Repairs,21/12/2011,1227039,510.00,Lee Wells Autobodies Ltd,A031849
North West Leicestershire District Council ,31UH,Leisure & Culture,CULTEV,Cultural Services Arts & Events,Tourism - publicity and promotions,21/12/2011,1227063,"4,000.00",Leicester Shire Promotions Ltd,A028765
North West Leicestershire District Council ,31UH,Planning & Development,EPP,Environment Planning Policy,Costumes - agent for character costumes,30/11/2011,1225537,"1,095.00",Rainbow Productions,A036530
North West Leicestershire District Council ,31UH,Chief Exec,PROC,Procurement,IT - Hosting - Procurement Connections,30/11/2011,1225781,995.00,Derby University Enterprises Limited,A001723
North West Leicestershire District Council ,31UH,Property Services,PROPCL,Property Commercial Lettings,Gas / Electricity Boiler Repair Work,30/11/2011,1225725,"1,270.00",AD Smith & Son (Nottm) Ltd,A000510
North West Leicestershire District Council ,31UH,Leisure Centres,HLC,Hermitage Leisure Centre,Doors - Servicing Automatic - Leisure,30/11/2011,1225736,871.49,Dorma Uk Limited,A025983
North West Leicestershire District Council ,31UH,Leisure Centres,HLBC,Hermitage Bar & Catering,Brewery,30/11/2011,1225807,585.80,Scottish & Newcastle UK,A001828
North West Leicestershire District Council ,31UH,Chief Exec,CHEX,Chief Executive,Web Design - Ashby website,30/11/2011,1226017,"2,100.00",Socius Limited,A031950
North West Leicestershire District Council ,31UH,Housing,HRAHM,HRA Housing Management,Environmental & safety products,07/12/2011,1225917,"1,297.54",Glasdon Manufacturing Limited,A000671
North West Leicestershire District Council ,31UH,Leisure Centres,HPLC,Hood Park Leisure Centre,Insurance Renewal,07/12/2011,1226231,"5,058.35",L.C.C.Ivanhoe College,A002200
North West Leicestershire District Council ,31UH,Leisure Centres,HLC,Hermitage Leisure Centre,Leisure - Service Contractor for Water Coolers,07/12/2011,1226244,574.00,Pressure Coolers Limited,A019679
North West Leicestershire District Council ,31UH,Leisure Centres,HPLC,Hood Park Leisure Centre,Lighting - Flood Lighting,07/12/2011,1226268,"2,025.86",Christy Lighting Ltd,A028616
North West Leicestershire District Council ,31UH,Corporate Director,HR,Human Resources,Charity Services - Childcare Vouchers,07/12/2011,1226344,"2,680.00",PES Limited,A035521
North West Leicestershire District Council ,31UH,Leisure Centres,HLC,Hermitage Leisure Centre,Water - Treatment Chemicals,07/12/2011,1226234,844.64,Stowlin Ltd,A001591
North West Leicestershire District Council ,31UH,Leisure & Culture,CULTEV,Cultural Services Arts & Events,Entertainment - Marquee Hire,07/12/2011,1226028,546.00,City B Group,A035479
North West Leicestershire District Council ,31UH,Leisure & Culture,CULTEV,Cultural Services Arts & Events,Plant and tool hire,07/12/2011,1226471,730.00,JB Tool Hire Ltd,A011490
North West Leicestershire District Council ,31UH,Property Services,PROPFM,Property Facilities Management,Legionella Risk Assessments,07/12/2011,1226682,"1,723.00",Rentokil Initial UK Limited,A037013
North West Leicestershire District Council ,31UH,Street Management,ESS,Environment - Street Scene,Training - environmental campaigns,14/12/2011,1226014,"4,499.00",Keep Britain Tidy,A025681
North West Leicestershire District Council ,31UH,Planning & Development,ECCTV,Environment - Town Centre/CCTV,Security - Provide Monitoring Services in respect of CCTV,14/12/2011,1226604,"4,061.75",Premier Security Services (Midlands) Limited,A038132
North West Leicestershire District Council ,31UH,Street Management,ENOT,Environment Transport,Advertising - Interchangeable mesh panels for HGV,14/12/2011,1226859,"2,175.00",Agripa Solutions Limited,A036860
North West Leicestershire District Council ,31UH,Housing Repairs,HRAHRM,HRA Housing Repairs & Maintenance,IT - Supplies -Signs & Labels,14/12/2011,1226352,"1,273.00",Coalville Signs,A000370
North West Leicestershire District Council ,31UH,Street Management,ENOP,Environment Parks,Grounds- Pitch Renovation,21/12/2011,1227066,550.00,F Woodward & Sons (Woodward Turfcare),A038270
North West Leicestershire District Council ,31UH,Leisure Centres,HPLC,Hood Park Leisure Centre,Gas & Electricity - Boilers & flues,21/12/2011,1227095,"2,182.08",Hamworthy Heating Limited,A013639
North West Leicestershire District Council ,31UH,Information Technology,ICT,ICT Services,IT - Telecommunications and data services,21/12/2011,1227050,"1,824.58",Freedom Communications (UK) Ltd,A032826
North West Leicestershire District Council ,31UH,Housing Strategy,HS,Community - Housing Strategy,Accomodation - Bed and Breakfast for Housing Strategy,21/12/2011,1227070,700.00,Pinewood Lodge,A032364
North West Leicestershire District Council ,31UH,Street Management,ENOT,Environment Transport,Vehicle Parts - Recycling Vehicles ,21/12/2011,1227056,"1,485.07",Terberg Matec UK Limited,A001647
North West Leicestershire District Council ,31UH,Neighbourhoods & Communities,NACCS,N & C Community Safety,Shared Service/ Leisure Service Project,21/12/2011,1227165,"1,673.30",Charnwood Borough Council,A010659
North West Leicestershire District Council ,31UH,Finance,FINPLA,Financial Planning,Subscriptions,21/12/2011,1227409,"12,566.50",Audit Commission,A000110
North West Leicestershire District Council ,31UH,Housing,HRAPBS,HRA Performance & Business Support,Consultancy Services,21/12/2011,1227610,"3,750.00",Q2 Limited,A035438
